bitfinex-derivatives/quotes_BTCF0:USTF0_20210406
["timestamp","ask_amount","ask_price","bid_price","bid_amount"]
[1617719463253,1.66007,57515.0,57504.0,0.27]
[1617719463454,2.66007,57515.0,57508.0,0.01]
[1617719463657,2.66007,57515.0,57496.0,0.30392209]
[1617719463853,1.5,57510.0,57496.0,0.30392209]
[1617719464255,1.5,57510.0,57488.0,0.30282701]
[1617719464656,1.5,57510.0,57483.0,0.30283219]
[1617719464859,1.5,57510.0,57504.0,0.10725655]
[1617719466856,0.10725655,57505.0,57504.0,0.10725655]
[1617719467057,1.60725655,57505.0,57478.0,0.30285177]
[1617719467259,3.1723,57486.0,57478.0,0.30285177]
[1617719467461,3.32539,57486.0,57479.0,0.0519]
[1617719467658,1.5,57485.0,57478.0,0.30285177]
[1617719467865,1.0,57482.0,57466.0,0.30294954]
[1617719468060,1.5,57481.0,57466.0,0.30294954]
[1617719468362,1.0,57479.0,57464.0,0.3029625]
[1617719468563,1.5,57479.0,57467.0,0.27]
[1617719468962,1.5,57475.0,57470.0,0.10725655]
[1617719469166,1.5,57475.0,57464.0,0.5729625]
[1617719469167,1.5,57475.0,57464.0,0.3029625]
[1617719469363,2.5,57475.0,57465.0,0.27]
[1617719469663,1.0,57472.0,57457.0,0.30250843]
[1617719469867,2.5,57471.0,57455.0,0.30251882]
[1617719470064,1.0,57471.0,57455.0,0.30251882]
[1617719470265,0.13083,57472.0,57451.0,0.30252161]
[1617719470464,0.13083,57472.0,57456.0,0.27]
[1617719470664,0.13083,57472.0,57453.0,0.27]
[1617719470967,0.10725655,57479.0,57471.0,0.10725655]
[1617719471664,0.10725655,57479.0,57472.0,0.27]
[1617719472064,0.10725655,57479.0,57471.0,0.10725655]
[1617719472065,1.60725655,57479.0,57471.0,0.10725655]
[1617719472367,1.5,57472.0,57454.0,0.30252634]
[1617719472865,2.5,57472.0,57468.0,0.10725655]
[1617719473164,1.0,57470.0,57446.0,0.30260382]
[1617719473465,1.0,57470.0,57445.0,1.0]
[1617719473466,2.5,57469.0,57447.0,0.27]
[1617719473664,2.5,57469.0,57445.0,1.0]
[1617719473866,1.0,57456.0,57445.0,1.0]
[1617719474066,1.5,57455.0,57445.0,1.0]
[1617719474269,3.476,57447.0,57446.0,0.27]
[1617719474468,4.976,57447.0,57446.0,0.27]
[1617719474767,4.976,57447.0,57445.0,1.0]
[1617719474971,0.10725655,57446.0,57445.0,1.0]
[1617719475172,1.60725655,57446.0,57445.0,1.0]
[1617719475569,2.60725655,57446.0,57445.0,1.0]
[1617719475767,2.65865655,57446.0,57445.0,1.0]
[1617719475969,1.60725655,57446.0,57445.0,1.0]
[1617719476168,2.60725655,57446.0,57445.0,1.0]
[1617719476469,2.74045655,57446.0,57445.0,1.0]
[1617719477372,1.74045655,57446.0,57445.0,1.0]
[1617719477570,2.74045655,57446.0,57445.0,1.0]
[1617719479172,2.79305655,57446.0,57445.0,1.0]
[1617719479372,2.74045655,57446.0,57445.0,0.95]
[1617719479773,2.74045655,57446.0,57400.0,0.30252041]
[1617719480273,1.5,57444.0,57404.0,0.0526]
[1617719480476,1.10746,57413.0,57404.0,0.0526]
[1617719480874,0.10746,57413.0,57404.0,0.0526]
[1617719481073,0.10725655,57409.0,57404.0,0.15985655]
[1617719481372,0.10725655,57409.0,57404.0,0.10725655]
[1617719482778,0.0529,57418.0,57404.0,0.10725655]
[1617719482980,0.0529,57418.0,57417.0,0.10725655]
[1617719483180,0.0524,57422.0,57417.0,0.10725655]
[1617719483478,2.9087,57423.0,57417.0,0.10725655]
[1617719483680,0.0517,57426.0,57417.0,0.10725655]
[1617719483979,0.13567,57479.0,57417.0,0.10725655]
[1617719483980,3.7129,57450.0,57418.0,0.27]
[1617719484982,3.7129,57450.0,57443.0,0.10725655]
[1617719485180,0.0522,57467.0,57443.0,0.23022655]
[1617719485381,0.0522,57467.0,57444.0,0.27]
[1617719485981,0.0519,57474.0,57444.0,0.27]
[1617719486180,1.0519,57474.0,57444.0,0.27]
[1617719486382,1.0,57464.0,57444.0,0.27]
[1617719486582,1.0,57463.0,57444.0,0.27]
[1617719486884,4.7934,57478.0,57444.0,0.27]
[1617719487082,4.7934,57478.0,57458.0,0.10725655]
[1617719487283,1.0,57463.0,57458.0,0.20620655]
[1617719487483,1.0,57472.0,57458.0,0.20620655]
[1617719487683,1.0,57471.0,57458.0,0.20620655]
[1617719487884,2.8246,57478.0,57458.0,0.20620655]
[1617719487885,1.0,57474.0,57458.0,0.20620655]
[1617719488085,1.0,57471.0,57458.0,0.20620655]
[1617719488284,1.0,57468.0,57458.0,0.20620655]
[1617719488483,1.0,57470.0,57458.0,0.20620655]
[1617719488783,2.8246,57478.0,57458.0,0.20620655]
[1617719488784,4.3246,57478.0,57458.0,0.10725655]
[1617719488987,0.10725655,57459.0,57458.0,0.10725655]
[1617719490084,0.10725655,57459.0,57458.0,0.15975655]
[1617719490587,0.10725655,57459.0,57458.0,0.10725655]
[1617719491386,0.10725655,57459.0,57458.0,0.37725655]
[1617719491688,0.4803,57484.0,57458.0,0.37725655]
[1617719491994,0.4803,57484.0,57458.0,0.51221655]
[1617719492387,1.0,57483.0,57458.0,0.51221655]
[1617719492594,0.4803,57484.0,57458.0,0.51221655]
[1617719492994,0.4803,57484.0,57483.0,0.10725655]
[1617719493191,0.4803,57484.0,57483.0,0.24925655]
[1617719493388,0.4803,57484.0,57483.0,0.51925655]
[1617719493897,1.0,57508.0,57483.0,0.51822602]
[1617719494089,0.00918943,57511.0,57483.0,0.51822602]
[1617719494291,0.00919266,57514.0,57483.0,0.51822602]
[1617719494490,1.00919266,57514.0,57483.0,0.51822602]
[1617719494690,1.0,57510.0,57483.0,0.51822602]
[1617719494991,1.4845,57516.0,57495.0,0.10725655]
[1617719495192,1.0,57516.0,57495.0,0.25316655]
[1617719495391,1.0,57523.0,57496.0,0.27]
[1617719495695,0.00920893,57525.0,57496.0,0.27]
[1617719496392,1.0,57528.0,57496.0,0.27]
[1617719496592,0.49040896,57529.0,57496.0,0.27]
[1617719496994,0.49040896,57529.0,57524.0,0.10725655]
[1617719496995,0.4812,57529.0,57524.0,0.10725655]
[1617719497195,0.4812,57529.0,57524.0,0.20601655]
[1617719497597,0.4812,57529.0,57524.0,0.15451373]
[1617719497996,0.4812,57529.0,57525.0,0.27]
[1617719499102,0.10725655,57526.0,57525.0,0.27]
[1617719500997,0.4812,57529.0,57528.0,0.10725655]
[1617719501698,0.4812,57529.0,57528.0,0.37725655]
[1617719502100,0.10725655,57537.0,57528.0,0.37725655]
[1617719502798,0.00466498,57542.0,57528.0,0.37725655]
[1617719502999,0.0046691,57547.0,57528.0,0.37725655]
[1617719503204,0.0046691,57547.0,57546.0,0.23482655]
[1617719503400,0.00927877,57547.0,57546.0,0.23482655]
[1617719504004,0.0092788,57550.0,57546.0,0.23482655]
[1617719504202,0.0092788,57550.0,57546.0,0.12757]
[1617719504400,0.00927318,57548.0,57546.0,0.12757]
[1617719504699,0.00927318,57548.0,57510.0,2.8785]
[1617719504700,1.0,57548.0,57510.0,2.8785]
[1617719504903,0.0521,57547.0,57510.0,2.8785]
[1617719505200,0.0521,57547.0,57533.0,0.10725655]
[1617719505401,1.5,57545.0,57533.0,0.10725655]
[1617719505601,1.0,57534.0,57511.0,0.27]
[1617719505903,1.14135,57534.0,57425.0,1.00510766]
[1617719506106,1.0,57529.0,57481.0,2.7532]
[1617719506402,0.14135,57534.0,57484.0,0.27]
[1617719506602,0.14135,57534.0,57481.0,2.7532]
[1617719506804,0.14135,57534.0,57489.0,0.27]
[1617719507004,1.0,57535.0,57489.0,0.27]
[1617719507204,1.5,57533.0,57489.0,0.0999]
[1617719507411,1.63769,57533.0,57490.0,0.27]
[1617719507612,1.5,57528.0,57490.0,0.27]
[1617719507913,1.0,57512.0,57490.0,0.27]
[1617719508107,1.5,57511.0,57482.0,0.27]
[1617719508308,1.5,57511.0,57491.0,0.27]
[1617719508511,2.5,57511.0,57491.0,0.27]
[1617719508708,1.5,57511.0,57482.0,0.27]
[1617719508908,1.5,57511.0,57469.0,0.4529]
[1617719508909,1.0,57507.0,57492.0,0.27]
[1617719509108,2.5,57507.0,57501.0,0.10725655]
[1617719509509,2.5,57507.0,57469.0,0.4529]
[1617719509708,1.0,57502.0,57469.0,0.4529]
[1617719509911,1.5,57501.0,57469.0,0.4529]
[1617719510111,1.0,57485.0,57453.0,2.8979]
[1617719510310,1.0,57483.0,57470.0,0.27]
[1617719510610,2.5,57482.0,57454.0,0.27]
[1617719510809,2.5,57482.0,57471.0,0.27]
[1617719511209,0.24584655,57472.0,57468.0,0.10725655]
[1617719511609,0.24584655,57472.0,57469.0,0.01]
[1617719511810,1.5,57471.0,57432.0,0.4699]
[1617719512110,1.5,57468.0,57414.0,0.44258287]
[1617719512310,1.5,57468.0,57413.0,3.51695189]
[1617719512619,1.0,57429.0,57413.0,3.51695189]
[1617719512828,1.5,57428.0,57408.0,0.31270729]
[1617719513031,1.7,57421.0,57408.0,0.31270729]
[1617719513312,1.5,57421.0,57408.0,0.00949631]
[1617719513713,1.0,57416.0,57409.0,0.27]
[1617719513916,1.0,57411.0,57408.0,0.00949631]
[1617719514112,0.149,57416.0,57408.0,0.00949631]
[1617719515213,0.149,57416.0,57415.0,0.10725655]
[1617719515613,0.15958,57429.0,57415.0,0.10725655]
[1617719515813,1.0,57442.0,57415.0,0.10725655]
[1617719516015,1.0,57439.0,57415.0,0.37725655]
[1617719516214,1.0,57437.0,57415.0,0.37725655]
[1617719516415,2.5,57436.0,57415.0,0.37725655]
[1617719516615,1.5,57436.0,57415.0,0.37725655]
[1617719516915,1.0,57433.0,57415.0,0.37725655]
[1617719517114,1.5,57436.0,57415.0,0.37725655]
[1617719517115,0.10725655,57416.0,57415.0,0.37725655]
[1617719518722,0.0519,57445.0,57415.0,0.37725655]
[1617719518923,0.0524,57450.0,57415.0,0.37725655]
[1617719518924,0.00912332,57452.0,57415.0,0.52724655]
[1617719519123,0.00912332,57452.0,57447.0,0.10725655]
[1617719519422,0.4877,57455.0,57447.0,0.21075655]
[1617719519620,1.9877,57455.0,57447.0,0.21075655]
[1617719519821,1.9877,57455.0,57447.0,0.1035]
[1617719519822,1.5,57452.0,57447.0,0.1035]
[1617719520023,1.5,57448.0,57447.0,0.1035]
[1617719520325,2.5,57448.0,57408.0,0.00949631]
[1617719520521,1.0,57436.0,57408.0,0.00949631]
[1617719520724,1.0,57434.0,57408.0,0.00949631]
[1617719521024,1.5,57430.0,57409.0,0.27]
[1617719521222,1.5,57430.0,57422.0,0.10725655]
[1617719521524,1.5,57430.0,57423.0,0.27]
[1617719521923,1.5,57430.0,57422.0,0.10725655]
[1617719522126,2.5,57430.0,57422.0,0.10725655]
[1617719522525,1.5,57430.0,57422.0,0.10725655]
[1617719523024,1.0,57434.0,57422.0,0.10725655]
[1617719523224,0.10725655,57423.0,57422.0,0.10725655]
[1617719523632,0.25572655,57423.0,57422.0,0.10725655]
[1617719524424,1.75572655,57423.0,57408.0,0.00949631]
[1617719524625,2.75572655,57423.0,57408.0,0.00949631]
[1617719525040,1.75572655,57423.0,57408.0,0.00949631]
[1617719525235,0.22065655,57409.0,57408.0,0.00949631]
[1617719525526,0.22065655,57409.0,57408.0,0.27949631]
[1617719527326,0.10725655,57409.0,57408.0,0.27949631]
[1617719528225,0.00913763,57445.0,57408.0,0.27949631]
[1617719528226,1.0,57428.0,57408.0,0.40494631]
[1617719528426,1.9529,57441.0,57408.0,0.40494631]
[1617719528625,1.27150537,57446.0,57408.0,0.40494631]
[1617719528626,0.00913649,57446.0,57408.0,0.40494631]
[1617719529026,1.0,57449.0,57408.0,0.40494631]
[1617719529226,0.0091418,57452.0,57436.0,0.10725655]
[1617719529430,2.5,57455.0,57436.0,0.10725655]
[1617719530027,0.00915018,57452.0,57436.0,0.10725655]
[1617719530435,1.5,57455.0,57436.0,0.10725655]
[1617719530436,1.50915525,57455.0,57436.0,0.10725655]
[1617719530633,0.00915525,57455.0,57436.0,0.10725655]
[1617719530828,0.00915525,57455.0,57437.0,0.27]
[1617719531028,0.00916627,57462.0,57437.0,0.27]
[1617719531227,0.00916627,57462.0,57456.0,0.26260655]
[1617719531431,0.00918056,57468.0,57456.0,0.26260655]
[1617719531829,1.0,57467.0,57456.0,0.26260655]
[1617719532129,1.5,57467.0,57456.0,0.26260655]
[1617719532331,1.0,57462.0,57409.0,0.4933]
[1617719532732,0.00917184,57464.0,57409.0,0.4933]
[1617719533133,1.50917585,57467.0,57410.0,0.27]
[1617719533331,1.50917585,57467.0,57411.0,0.2]
[1617719533532,2.5,57467.0,57410.0,0.27]
[1617719533732,1.63673,57467.0,57412.0,0.27]
[1617719533939,0.00918398,57466.0,57412.0,0.27]
[1617719534134,1.0,57465.0,57410.0,0.28]
[1617719534344,1.0,57452.0,57413.0,0.27]
[1617719534535,2.7,57451.0,57413.0,0.27]
[1617719534736,1.0,57450.0,57410.0,0.27]
[1617719534936,1.5,57451.0,57414.0,0.27]
[1617719535337,1.5,57451.0,57431.0,0.10725655]
[1617719535837,1.5,57451.0,57432.0,0.27]
[1617719536237,1.0,57449.0,57432.0,0.27]
[1617719536439,2.5,57449.0,57432.0,0.27]
[1617719536639,1.0,57447.0,57432.0,0.27]
[1617719536838,1.5,57446.0,57432.0,0.27]
[1617719537139,1.0,57445.0,57432.0,0.27]
[1617719537342,0.11937,57447.0,57437.0,0.10725655]
[1617719537739,0.11937,57447.0,57438.0,0.01]
[1617719537939,1.0,57457.0,57438.0,0.01]
[1617719538241,1.0,57456.0,57438.0,0.01]
[1617719538439,1.0,57453.0,57438.0,0.01]
[1617719538641,1.5,57452.0,57438.0,0.01]
[1617719538843,1.5,57452.0,57413.0,0.27]
[1617719539044,1.0,57455.0,57439.0,0.27]
[1617719539243,0.44004161,57463.0,57447.0,0.10725655]
[1617719539244,1.0,57461.0,57447.0,0.10725655]
[1617719539442,2.5,57461.0,57447.0,0.10725655]
[1617719539644,1.5,57461.0,57440.0,0.27]
[1617719540043,1.5,57461.0,57412.0,2.6562]
[1617719540243,1.0,57460.0,57412.0,2.6562]
[1617719540542,0.00918746,57463.0,57412.0,2.6562]
[1617719540743,0.00918746,57463.0,57413.0,0.27]
[1617719540947,0.00918746,57463.0,57414.0,0.2]
[1617719541145,0.00919099,57465.0,57414.0,0.2]
[1617719541343,0.00919099,57465.0,57451.0,0.10725655]
[1617719541545,0.00919099,57465.0,57451.0,0.23318655]
[1617719541745,0.00919334,57467.0,57452.0,0.27]
[1617719542344,0.4853,57471.0,57452.0,0.27]
[1617719542745,0.00921636,57482.0,57452.0,0.27]
[1617719543247,0.00921814,57486.0,57480.0,0.10725655]
[1617719543446,0.00921814,57486.0,57480.0,0.25323655]
[1617719543645,0.00921772,57487.0,57480.0,0.25323655]
[1617719543846,0.0529,57486.0,57481.0,0.27]
[1617719544248,0.0529,57486.0,57481.0,0.2689696]
[1617719544548,0.00922033,57489.0,57481.0,0.2689696]
[1617719545347,0.10725655,57482.0,57481.0,0.2689696]
[1617719546850,0.32901606,57497.0,57481.0,0.2689696]
[1617719546851,0.0092316,57495.0,57481.0,0.2689696]
[1617719547250,0.0092316,57495.0,57492.0,0.10725655]
[1617719547450,0.00923245,57496.0,57492.0,0.10725655]
[1617719547852,0.00923737,57498.0,57493.0,0.27]
[1617719548351,0.00923759,57500.0,57493.0,0.27]
[1617719549154,0.13945759,57500.0,57457.0,0.4985]
[1617719549354,0.00923265,57499.0,57457.0,0.4985]
[1617719549755,0.00923265,57499.0,57458.0,0.27]
[1617719550053,0.00921847,57490.0,57458.0,0.27]
[1617719550352,0.00922167,57491.0,57458.0,0.27]
[1617719550552,0.00922167,57491.0,57458.0,0.12255]
[1617719550753,0.00922767,57494.0,57458.0,0.12255]
[1617719551052,0.00922767,57494.0,57459.0,0.27]
[1617719551254,1.5,57503.0,57459.0,0.27]
[1617719551255,0.00922046,57492.0,57459.0,0.27]
[1617719551552,0.00922046,57492.0,57491.0,0.10725655]
[1617719551757,0.32924236,57492.0,57491.0,0.11725655]
[1617719552255,0.00921046,57493.0,57491.0,0.22544682]
[1617719552456,0.00921376,57495.0,57491.0,0.22544682]
[1617719553259,0.10725655,57492.0,57491.0,0.22544682]
[1617719554559,0.10725655,57492.0,57491.0,0.22441659]
[1617719555160,0.00922679,57505.0,57491.0,0.22441659]
[1617719555358,0.00922679,57505.0,57504.0,0.10725655]
[1617719555559,0.27415448,57506.0,57504.0,0.23140655]
[1617719555761,0.11648867,57508.0,57504.0,0.50140655]
[1617719556062,0.10725655,57508.0,57504.0,0.50140655]
[1617719556260,0.10725655,57508.0,57504.0,0.39415]
[1617719556963,0.27459486,57513.0,57505.0,0.2]
[1617719557361,0.28702222,57534.0,57504.0,3.35725]
[1617719557362,0.27474654,57515.0,57512.0,0.10725655]
[1617719557962,0.10725655,57527.0,57513.0,0.01]
[1617719558372,0.27606328,57540.0,57513.0,0.01]
[1617719558871,0.51523841,57562.0,57513.0,0.01]
[1617719558872,0.27632444,57547.0,57513.0,0.21]
[1617719559366,0.10725655,57546.0,57537.0,0.10725655]
[1617719559568,0.10725655,57546.0,57537.0,0.23670655]
[1617719559768,0.10725655,57546.0,57537.0,0.50670655]
[1617719559769,0.9327,57538.0,57537.0,0.50670655]
[1617719561969,0.10725655,57540.0,57537.0,0.50670655]
[1617719562171,0.10725655,57540.0,57537.0,0.39945]
[1617719563070,0.33149749,57556.0,57537.0,0.39945]
[1617719563374,0.74396692,57538.0,57537.0,0.39945]
[1617719563777,0.33094026,57563.0,57537.0,0.39945]
[1617719564672,0.33124959,57567.0,57537.0,0.39945]
[1617719565071,0.40484017,57572.0,57537.0,0.39945]
[1617719565072,0.33131976,57569.0,57537.0,0.39945]
[1617719565470,0.33131976,57569.0,57557.0,0.10725655]
[1617719565670,0.33129851,57568.0,57557.0,0.10725655]
[1617719565870,0.33129851,57568.0,57558.0,0.27]
[1617719566071,0.33111308,57567.0,57557.0,0.10725655]
[1617719566271,0.62963,57564.0,57504.0,2.9631]
[1617719566473,2.12963,57564.0,57504.0,2.9631]
[1617719566672,0.62963,57564.0,57504.0,2.9631]
[1617719566975,0.33078847,57563.0,57505.0,0.27]
[1617719567173,0.53078847,57563.0,57505.0,0.27]
[1617719567377,0.2,57563.0,57543.0,0.10725655]
[1617719567575,0.0524,57562.0,57543.0,0.10725655]
[1617719567776,0.33064747,57560.0,57544.0,0.27]
[1617719567975,1.83064747,57560.0,57544.0,0.27]
[1617719568174,0.2,57559.0,57512.0,0.27]
[1617719568497,1.7,57556.0,57505.0,0.01]
[1617719568695,1.7,57556.0,57477.0,0.4151682]
[1617719568888,1.7,57556.0,57472.0,0.30226369]
[1617719568889,0.1332,57528.0,57472.0,0.30226369]
[1617719569175,1.5,57527.0,57472.0,0.30226369]
[1617719569375,0.2,57526.0,57484.0,0.10725655]
[1617719569696,0.26591,57528.0,57484.0,0.10725655]
[1617719569697,0.2,57524.0,57484.0,0.10725655]
[1617719569978,0.32822333,57519.0,57484.0,0.10725655]
[1617719570177,1.7,57518.0,57484.0,0.10725655]
[1617719570378,0.32774285,57512.0,57484.0,0.10725655]
[1617719570577,1.7,57511.0,57466.0,2.7427]
[1617719570877,1.7,57511.0,57442.0,0.4743]
[1617719571386,1.7,57511.0,57472.0,0.10725655]
[1617719571580,0.42580808,57510.0,57472.0,0.10725655]
[1617719571786,1.7,57509.0,57472.0,0.10725655]
[1617719571998,0.2,57509.0,57472.0,0.10725655]
[1617719572196,0.42580808,57510.0,57473.0,0.27]
[1617719572383,0.42580808,57510.0,57473.0,0.39909]
[1617719572586,0.32811815,57519.0,57473.0,0.39909]
[1617719572782,0.32811815,57519.0,57474.0,0.2]
[1617719572983,0.32838689,57523.0,57474.0,0.2]
[1617719573183,0.32838689,57523.0,57475.0,0.27]
[1617719573384,0.32838689,57523.0,57507.0,0.10725655]
[1617719573584,0.89544149,57527.0,57507.0,0.22306655]
[1617719573585,0.82270095,57527.0,57507.0,0.22306655]
[1617719573785,0.82270095,57527.0,57508.0,0.01]
[1617719573985,0.4941,57527.0,57508.0,0.01]
[1617719574686,0.32879078,57541.0,57508.0,0.01]
[1617719575288,0.32968182,57546.0,57508.0,0.01]
[1617719575488,0.32968182,57546.0,57521.0,0.10725655]
[1617719575789,0.4029241,57550.0,57522.0,0.27]
[1617719575790,0.329652,57545.0,57522.0,0.27]
[1617719576090,0.4290675,57545.0,57522.0,0.27]
[1617719576590,0.32958844,57544.0,57522.0,0.26897024]
[1617719576791,1.0,57541.0,57522.0,0.26897024]
[1617719576991,1.5,57540.0,57522.0,0.26897024]
[1617719577193,1.5,57532.0,57507.0,3.6668]
[1617719577494,0.10725655,57508.0,57504.0,0.10725655]
[1617719578095,0.10725655,57508.0,57505.0,0.27]
[1617719578896,0.32913851,57537.0,57505.0,0.27]
[1617719579094,1.5,57536.0,57505.0,0.27]
[1617719579895,0.32909029,57537.0,57475.0,0.27]
[1617719580098,0.32909029,57537.0,57494.0,2.5877]
[1617719580299,0.45703431,57547.0,57494.0,2.5877]
[1617719580300,0.32920205,57543.0,57506.0,0.27]
[1617719580497,0.32920205,57543.0,57506.0,0.15554]
[1617719580700,0.32936229,57546.0,57506.0,0.15554]
[1617719580897,0.32936229,57546.0,57507.0,0.27]
[1617719581499,0.32936229,57546.0,57527.0,0.10725655]
[1617719581799,0.4864,57551.0,57527.0,0.23947655]
[1617719581800,0.32942918,57547.0,57527.0,0.23947655]
[1617719582205,0.88901534,57551.0,57527.0,0.23947655]
[1617719582206,0.32953772,57549.0,57527.0,0.23947655]
[1617719582403,0.32953772,57549.0,57528.0,0.27]
[1617719582600,0.3296554,57550.0,57528.0,0.27]
[1617719583003,0.32990445,57554.0,57528.0,0.27]
[1617719583399,1.5,57553.0,57528.0,0.27]
[1617719583600,0.10725655,57529.0,57528.0,0.27]
[1617719584201,0.10725655,57529.0,57507.0,0.27]
[1617719584403,0.10725655,57529.0,57494.0,2.5877]
[1617719584404,0.10725655,57529.0,57528.0,0.27]
[1617719584607,0.10725655,57529.0,57528.0,0.40363]
[1617719584806,0.10725655,57529.0,57528.0,0.13363]
[1617719585120,0.32971146,57547.0,57528.0,0.13363]
[1617719585305,0.32989079,57549.0,57528.0,0.40363]
[1617719585704,1.83005987,57551.0,57528.0,0.40363]
[1617719586105,0.32990008,57548.0,57528.0,0.40363]
[1617719587507,0.10725655,57529.0,57528.0,0.51088655]
[1617719588108,0.10725655,57529.0,57528.0,0.40260026]
[1617719589009,0.10725655,57529.0,57507.0,0.0525]
[1617719589209,0.10725655,57529.0,57498.0,0.30343835]
[1617719589708,0.11819,57532.0,57509.0,0.10725655]
[1617719589911,0.11819,57532.0,57510.0,0.27]
[1617719590512,1.5,57542.0,57510.0,0.27]
[1617719590810,2.6482,57542.0,57492.0,0.30344662]
[1617719591011,1.5,57524.0,57492.0,0.30344662]
[1617719591212,1.0,57493.0,57483.0,0.30353107]
[1617719591537,0.10725655,57484.0,57483.0,0.30353107]
[1617719591711,0.10725655,57484.0,57461.0,0.56659132]
[1617719591712,0.10725655,57484.0,57462.0,0.30356117]
[1617719592514,0.10725655,57484.0,57463.0,0.27]
[1617719593017,0.10725655,57484.0,57460.0,0.27]
[1617719593215,0.10725655,57484.0,57464.0,0.27]
[1617719593514,2.5,57519.0,57491.0,0.10725655]
[1617719593716,1.5,57519.0,57464.0,0.12874]
[1617719594014,1.5,57519.0,57465.0,0.47]
[1617719594516,2.5,57519.0,57465.0,0.47]
[1617719594715,1.0,57519.0,57465.0,0.47]
[1617719594917,0.2,57518.0,57465.0,0.47]
[1617719595618,0.2,57518.0,57480.0,0.10725655]
[1617719596016,0.2,57518.0,57481.0,0.27]
[1617719597015,1.7,57518.0,57481.0,0.27]
[1617719597316,1.4789,57524.0,57481.0,0.27]
[1617719597514,1.4789,57524.0,57504.0,0.10725655]
[1617719597716,0.1332,57525.0,57501.0,0.14894]
[1617719597916,0.1332,57525.0,57505.0,0.01]
[1617719598218,0.1332,57525.0,57501.0,0.14894]
[1617719598219,1.0,57541.0,57502.0,0.27]
[1617719598417,1.9737,57537.0,57506.0,0.27]
[1617719598818,0.2,57536.0,57502.0,0.27]
[1617719599219,1.9737,57537.0,57507.0,0.27]
[1617719599418,1.9737,57537.0,57502.0,0.27]
[1617719599619,1.9737,57537.0,57508.0,0.10725655]
[1617719599820,1.9737,57537.0,57508.0,0.37725655]
[1617719600022,1.9737,57537.0,57508.0,0.10725655]
[1617719600222,0.4737,57537.0,57508.0,0.10725655]
[1617719600425,0.4737,57537.0,57509.0,0.27]
[1617719601724,0.10725655,57510.0,57509.0,0.27]
[1617719603037,1.5,57536.0,57509.0,0.27]
[1617719603260,1.0,57533.0,57509.0,0.27]
[1617719603446,1.1489,57533.0,57509.0,0.27]
[1617719603646,0.1489,57533.0,57512.0,0.10725655]
[1617719604039,0.1489,57533.0,57513.0,0.27]
[1617719604424,0.4737,57537.0,57513.0,0.27]
[1617719605525,1.81696735,57569.0,57513.0,0.27]
[1617719605825,0.4753,57568.0,57542.0,0.23964655]
[1617719606031,0.4753,57568.0,57543.0,0.27]
[1617719606225,1.0,57564.0,57543.0,0.27]
[1617719606427,1.5,57563.0,57543.0,0.27]
[1617719606625,1.5,57558.0,57543.0,0.27]
[1617719606825,1.0,57555.0,57543.0,0.27]
[1617719607126,1.7,57554.0,57518.0,0.01]
[1617719607326,2.7,57554.0,57518.0,0.01]
[1617719607531,1.5,57554.0,57544.0,0.26897018]
[1617719607728,0.10725655,57545.0,57518.0,0.27]
[1617719609735,1.5,57558.0,57524.0,0.26298655]
[1617719609939,1.5,57558.0,57525.0,0.27]
[1617719611042,1.0,57554.0,57525.0,0.27]
[1617719611239,2.5,57553.0,57525.0,0.27]
[1617719611735,0.10725655,57526.0,57525.0,0.27]
[1617719613738,0.10725655,57526.0,57518.0,0.37725655]
[1617719613937,0.10725655,57526.0,57518.0,0.10725655]
[1617719614240,0.10725655,57526.0,57519.0,0.27]
[1617719615840,0.10725655,57526.0,57525.0,0.10725655]
[1617719616241,0.10725655,57526.0,57525.0,0.27]
[1617719616641,0.10725655,57526.0,57505.0,0.27]
[1617719616944,0.24186655,57526.0,57525.0,0.27]
[1617719617142,0.24186655,57526.0,57525.0,0.0525]
[1617719617341,0.24186655,57526.0,57504.0,0.27]
[1617719617542,0.24186655,57526.0,57525.0,0.27]
[1617719617742,1.5,57546.0,57518.0,0.10725655]
[1617719617942,0.1496,57529.0,57519.0,0.01]
[1617719618143,0.1496,57529.0,57525.0,0.27]
[1617719618548,0.1496,57529.0,57518.0,0.10725655]
[1617719618549,0.1496,57529.0,57520.0,0.01]
[1617719618747,0.1496,57529.0,57526.0,0.27]
[1617719618946,2.5,57559.0,57526.0,0.14908]
[1617719619247,2.5,57559.0,57527.0,0.27]
[1617719619447,1.5,57559.0,57527.0,0.27]
[1617719619649,0.93138899,57567.0,57540.0,0.10725655]
[1617719619850,1.13138899,57567.0,57540.0,0.26082655]
[1617719620051,0.4753,57568.0,57540.0,0.26082655]
[1617719620052,1.5,57566.0,57541.0,0.27]
[1617719620451,0.4753,57568.0,57541.0,0.27]
[1617719620653,0.65417136,57566.0,57541.0,0.26897053]
[1617719621059,0.65463745,57567.0,57541.0,0.26897053]
[1617719621556,1.1300581,57568.0,57541.0,0.26897053]
[1617719621755,1.1300581,57568.0,57555.0,0.10725655]
[1617719623056,1.1300581,57568.0,57540.0,0.15357]
[1617719623659,0.65618733,57567.0,57548.0,0.10725655]
[1617719624057,0.65618733,57567.0,57549.0,0.27]
[1617719624658,0.4753,57568.0,57549.0,0.27]
[1617719624659,1.13181371,57568.0,57549.0,0.27]
[1617719625258,0.0522,57567.0,57550.0,0.0518]
[1617719625457,1.13181371,57568.0,57549.0,0.27]
[1617719625657,1.13181371,57568.0,57551.0,0.27]
[1617719625858,0.4753,57568.0,57551.0,0.27]
[1617719626058,0.4753,57568.0,57549.0,0.27]
[1617719626260,0.4753,57568.0,57552.0,0.27]
[1617719626770,0.0521,57567.0,57556.0,3.5389]